bitfinex-derivatives/quotes_BTCF0:USTF0_20250812
["timestamp","ask_amount","ask_price","bid_price","bid_amount"]
[1754961998749,1.30684896,119120.0,119110.0,0.1407182]
[1754961999150,1.22290786,119120.0,119110.0,0.1665682]
[1754961999347,1.22290786,119120.0,119110.0,0.1811082]
[1754961999947,1.22290786,119120.0,119110.0,0.1340082]
[1754962000546,1.22290786,119120.0,119110.0,0.1665682]
[1754962001550,1.30684896,119120.0,119110.0,0.1665682]
[1754962002443,1.22290786,119120.0,119110.0,0.1885782]
[1754962002649,1.30684896,119120.0,119110.0,0.2031182]
[1754962011452,1.30684896,119120.0,119110.0,0.1560182]
[1754962012461,0.88720391,119120.0,119110.0,0.1560182]
[1754962012754,0.88720391,119120.0,119110.0,0.2024982]
[1754962013052,1.30684896,119120.0,119110.0,0.2024982]
[1754962016760,0.52420896,119120.0,119110.0,0.2024982]
[1754962016950,1.30592896,119120.0,119110.0,0.2024982]
[1754962017256,0.00184,119130.0,119120.0,0.0839411]
[1754962017450,1.28932915,119130.0,119120.0,0.1295511]
[1754962017652,1.20539505,119130.0,119120.0,0.2005511]
[1754962019456,1.20639505,119130.0,119120.0,0.2005511]
[1754962020052,0.78775,119130.0,119120.0,0.2005511]
[1754962022658,1.20739505,119130.0,119120.0,0.2005511]
[1754962024454,0.42571505,119130.0,119120.0,0.2005511]
[1754962024652,1.20707505,119130.0,119120.0,0.2005511]
[1754962025352,0.78743,119130.0,119120.0,0.2005511]
[1754962031763,1.20707505,119130.0,119120.0,0.2005511]
[1754962031964,1.29100915,119130.0,119120.0,0.0839411]
[1754962033153,1.29100915,119130.0,119120.0,0.1084611]
[1754962041266,1.43050915,119130.0,119120.0,0.1084611]
[1754962041571,1.29100915,119130.0,119120.0,0.1084611]
[1754962048273,1.29100915,119130.0,119120.0,0.0839411]
[1754962051680,1.29100915,119130.0,119120.0,0.1068611]
[1754962055590,1.29100915,119130.0,119120.0,0.0839411]
[1754962055790,1.29100915,119130.0,119120.0,0.1068611]
[1754962056692,1.81396184,119130.0,119120.0,0.1068611]
[1754962056890,0.8713641,119130.0,119120.0,0.1068611]
[1754962057089,1.81396184,119130.0,119120.0,0.1068611]
[1754962060490,1.81542333,119130.0,119120.0,0.0839411]
[1754962060894,0.0839411,119120.0,119110.0,0.3357884]
[1754962061194,0.55902997,119120.0,119110.0,0.3587084]
[1754962061492,1.19822404,119120.0,119110.0,0.0839481]
[1754962061698,1.28217214,119120.0,119110.0,0.0839481]
[1754962061890,0.81087327,119120.0,119110.0,0.0839481]
[1754962062697,1.17762344,119120.0,119110.0,0.0839481]
[1754962063195,1.17762344,119120.0,119110.0,0.1068681]
[1754962066800,1.17762344,119120.0,119110.0,0.02292]
[1754962067703,1.17762344,119120.0,119110.0,0.1068682]
[1754962068093,0.3395744,119120.0,119110.0,0.1068682]
[1754962068298,1.17762344,119120.0,119110.0,0.1068682]
[1754962069202,0.75859892,119120.0,119110.0,0.1068682]
[1754962069607,0.67465082,119120.0,119110.0,0.1068682]
[1754962071718,0.81415082,119120.0,119110.0,0.1068682]
[1754962074723,1.23317534,119120.0,119110.0,0.1068682]
[1754962081220,1.23317534,119120.0,119110.0,0.1412282]
[1754962082121,1.23317534,119120.0,119110.0,0.1658582]
[1754962084629,0.86649225,119120.0,119110.0,0.1658582]
[1754962092330,0.86649225,119120.0,119110.0,0.1314982]
[1754962095435,1.3378582,119120.0,119110.0,0.1314982]
[1754962096135,0.86649225,119120.0,119110.0,0.1314982]
[1754962096838,0.86649225,119120.0,119110.0,0.1801782]
[1754962097738,0.86649225,119120.0,119110.0,0.1314982]
[1754962098033,0.86649225,119120.0,119110.0,0.1314981]
[1754962098538,1.3378582,119120.0,119110.0,0.1314981]
[1754962100848,1.3378582,119120.0,119110.0,0.1068681]
[1754962104148,0.86649225,119120.0,119110.0,0.1416281]
[1754962104348,0.86649225,119120.0,119110.0,0.1662181]
[1754962104549,0.86649225,119120.0,119110.0,0.2014681]
[1754962109447,1.3378582,119120.0,119110.0,0.2014681]
[1754962109648,1.3378582,119120.0,119110.0,0.1872281]
[1754962111756,1.3378582,119120.0,119110.0,0.1524681]
[1754962111954,1.3378582,119120.0,119110.0,0.1314581]
[1754962115657,1.3378582,119120.0,119110.0,0.1068681]
[1754962116452,1.3378582,119120.0,119110.0,0.2014681]
[1754962116758,0.86649225,119120.0,119110.0,0.2014681]
[1754962120462,1.3378582,119120.0,119110.0,0.2014681]
[1754962122259,0.86649225,119120.0,119110.0,0.2014681]
[1754962130361,1.25255595,119120.0,119110.0,0.22040626]
[1754962130566,1.33649705,119120.0,119110.0,0.22040626]
[1754962131866,0.00233,119120.0,119110.0,0.22040626]
[1754962132066,1.24876595,119120.0,119110.0,0.69177221]
[1754962132466,1.24876595,119120.0,119110.0,0.22040626]
[1754962132667,1.24876595,119120.0,119110.0,0.69177221]
[1754962132862,1.24876595,119120.0,119110.0,0.22040626]
[1754962135470,1.33270705,119120.0,119110.0,0.22040626]
[1754962136073,1.33416705,119120.0,119110.0,0.22040626]
[1754962136372,0.8628011,119120.0,119110.0,0.22040626]
[1754962136673,1.33416705,119120.0,119110.0,0.22040626]
[1754962137477,1.25022595,119120.0,119110.0,0.22040626]
[1754962137773,1.24876595,119120.0,119110.0,0.22040626]
[1754962138176,1.25022595,119120.0,119110.0,0.22040626]
[1754962138675,1.33416705,119120.0,119110.0,0.22040626]
[1754962138876,1.25022595,119120.0,119110.0,0.22040626]
[1754962140977,0.77886,119120.0,119110.0,0.22040626]
[1754962141176,1.25022595,119120.0,119110.0,0.22040626]
[1754962141379,0.7774,119120.0,119110.0,0.85967621]
[1754962142077,1.24876595,119120.0,119110.0,0.85967621]
[1754962142676,0.7774,119120.0,119110.0,0.85967621]
[1754962142980,1.24876595,119120.0,119110.0,0.85967621]
[1754962143368,1.24876595,119120.0,119110.0,0.38831026]
[1754962143677,1.25022595,119120.0,119110.0,0.38831026]
[1754962146179,0.77886,119120.0,119110.0,0.38931026]
[1754962146372,1.25255595,119120.0,119110.0,0.38931026]
[1754962146675,1.25255595,119120.0,119110.0,0.22240626]
[1754962148878,1.24796595,119120.0,119110.0,0.69377221]
[1754962149278,1.24942595,119120.0,119110.0,0.69377221]
[1754962157882,1.24942595,119120.0,119110.0,0.17340626]
[1754962158085,1.33336705,119120.0,119110.0,0.12780626]
[1754962158390,1.35003384,119120.0,119110.0,0.10488626]
[1754962158590,1.82139979,119120.0,119110.0,0.10488626]
[1754962158792,1.35003384,119120.0,119110.0,0.10488626]
[1754962159591,1.35003384,119120.0,119110.0,0.12756626]
[1754962159989,1.35103384,119120.0,119110.0,0.12556626]
[1754962160190,1.35203384,119120.0,119110.0,0.12556626]
[1754962162794,1.21566976,119120.0,119110.0,0.12556626]
[1754962163494,1.29961086,119120.0,119110.0,0.12556626]
[1754962163891,0.88066789,119120.0,119110.0,0.12556626]
[1754962164089,0.88299789,119120.0,119110.0,0.12556626]
[1754962164283,1.30194086,119120.0,119110.0,0.12556626]
[1754962164496,1.21799976,119120.0,119110.0,0.12556626]
[1754962168395,1.30194086,119120.0,119110.0,0.12556626]
[1754962168789,1.21799976,119120.0,119110.0,0.12556626]
[1754962169994,1.21799976,119120.0,119110.0,0.15759626]
[1754962171491,1.30194086,119120.0,119110.0,0.15759626]
[1754962172498,1.30194086,119120.0,119110.0,0.12556626]
[1754962174903,1.30094086,119120.0,119110.0,0.12556626]
[1754962175103,1.29994086,119120.0,119110.0,0.12556626]
[1754962181013,1.21599976,119120.0,119110.0,0.18198626]
[1754962181216,0.79705679,119120.0,119110.0,0.21740626]
[1754962181418,1.21599976,119120.0,119110.0,0.21740626]
[1754962181908,0.00379,119120.0,119110.0,0.21740626]
[1754962182104,0.77769,119120.0,119110.0,0.21740626]
[1754962182310,0.77915,119120.0,119110.0,0.21740626]
[1754962182907,0.00330149,119130.0,119110.0,0.88818903]
[1754962183102,0.77536,119120.0,119110.0,0.42370606]
[1754962183808,0.77536,119120.0,119110.0,0.46924606]
[1754962184007,0.77682,119120.0,119110.0,0.47024606]
[1754962184408,0.77915,119120.0,119110.0,0.47024606]
[1754962184613,1.25030035,119120.0,119110.0,0.94139641]
[1754962186918,0.77915,119120.0,119110.0,0.94139641]
[1754962187109,1.25030035,119120.0,119110.0,0.94139641]
[1754962188013,0.77915,119120.0,119110.0,0.94139641]
[1754962188217,1.25030035,119120.0,119110.0,0.94139641]
[1754962191116,0.00233,119120.0,119110.0,0.94139641]
[1754962191316,0.77729,119120.0,119110.0,0.94139641]
[1754962192409,0.77875,119120.0,119110.0,0.94139641]
[1754962193322,0.77496,119120.0,119110.0,0.94139641]
[1754962194825,0.77642,119120.0,119110.0,0.94139641]
[1754962195118,0.77875,119120.0,119110.0,0.94139641]
[1754962196319,1.24990035,119120.0,119110.0,0.94139641]
[1754962197618,0.77875,119120.0,119110.0,0.94139641]
[1754962201425,1.24763035,119130.0,119120.0,0.0839411]
[1754962201720,1.24986035,119130.0,119120.0,0.67127145]
[1754962203824,1.24986035,119130.0,119120.0,0.67974753]
[1754962204423,1.24986035,119130.0,119120.0,0.20859718]
[1754962204621,1.24986035,119130.0,119120.0,0.2001211]
[1754962204831,1.7210107,119130.0,119120.0,0.2001211]
[1754962205123,1.7210107,119130.0,119120.0,0.1545011]
[1754962205320,1.8049447,119130.0,119120.0,0.0839411]
[1754962205521,1.80640617,119130.0,119120.0,0.0824811]
[1754962206621,1.28305578,119130.0,119120.0,0.0824811]
[1754962206816,1.28305578,119130.0,119120.0,0.0834811]
[1754962207226,1.28305578,119130.0,119120.0,0.0844811]
[1754962208832,1.70200609,119130.0,119120.0,0.002]
[1754962209223,1.70200609,119130.0,119120.0,0.0859411]
[1754962210231,1.70200609,119130.0,119120.0,0.002]
[1754962210423,1.70200609,119130.0,119120.0,0.0859411]
[1754962211130,1.28305578,119130.0,119120.0,0.0859411]
[1754962218828,1.42245578,119130.0,119120.0,0.085941]
[1754962220827,1.42245578,119130.0,119120.0,0.002]
[1754962223330,1.42245578,119130.0,119120.0,0.0859411]
[1754962223530,1.42245578,119130.0,119120.0,0.1086311]
[1754962224033,1.42245578,119130.0,119120.0,0.02469]
[1754962225235,1.84140609,119130.0,119120.0,0.002]
[1754962225432,1.84140609,119130.0,119110.0,0.01893816]
[1754962225433,0.0839411,119120.0,119110.0,0.01893816]
[1754962225634,0.93878542,119120.0,119110.0,0.01893816]
[1754962226241,0.93878542,119120.0,119110.0,0.10288626]
[1754962226440,0.93878542,119120.0,119110.0,0.12557626]
[1754962226742,0.57227541,119120.0,119110.0,0.12557626]
[1754962226941,1.04566602,119120.0,119110.0,0.12557626]
[1754962227442,0.57427541,119120.0,119110.0,0.12557626]
[1754962227645,0.57627541,119120.0,119110.0,0.12557626]
[1754962228944,0.71567541,119120.0,119110.0,0.12557626]
[1754962229136,0.2442848,119120.0,119110.0,0.12557626]
[1754962229342,0.71567541,119120.0,119110.0,0.12557626]
[1754962230446,0.2442848,119120.0,119110.0,0.15766626]
[1754962230639,0.71567541,119120.0,119110.0,0.19722626]
[1754962234546,0.74048061,119120.0,119110.0,0.19722626]
[1754962235545,0.71567541,119120.0,119110.0,0.19722626]
[1754962239350,0.74049804,119120.0,119110.0,0.19722626]
[1754962241545,0.74049804,119120.0,119110.0,0.21991626]
[1754962243047,1.21188865,119120.0,119110.0,0.12557626]
[1754962243446,1.21188865,119120.0,119110.0,0.04162816]
[1754962243948,1.21188865,119120.0,119110.0,0.12557626]
[1754962244640,1.18706602,119120.0,119110.0,0.12557626]
[1754962246052,1.18706602,119120.0,119110.0,0.04162816]
[1754962247148,1.18706602,119120.0,119110.0,0.01893816]
[1754962247453,0.0839551,119100.0,119090.0,0.1906098]
[1754962247641,1.79989632,119100.0,119090.0,0.2009881]
[1754962248944,0.0839622,119090.0,119080.0,0.1335368]
[1754962249151,0.0839622,119090.0,119080.0,0.1794968]
[1754962249152,0.62161538,119090.0,119080.0,0.1794968]
[1754962249553,0.62161538,119090.0,119080.0,0.2035668]
[1754962249761,0.55535281,119090.0,119080.0,0.2035668]
[1754962250052,1.02674342,119090.0,119080.0,0.02407]
[1754962250248,1.03526704,119090.0,119080.0,0.02507]
[1754962251352,1.05256207,119090.0,119080.0,0.02707]
[1754962252055,1.05256207,119090.0,119080.0,0.02407]
[1754962252247,1.05456207,119090.0,119080.0,0.02407]
[1754962252753,0.53101964,119090.0,119080.0,0.02407]
[1754962253050,0.95025843,119090.0,119080.0,0.02407]
[1754962253254,0.0839693,119080.0,119070.0,0.1080423]
[1754962253553,1.69548688,119080.0,119070.0,0.1196]
[1754962253755,1.69548688,119080.0,119070.0,0.02407]
[1754962255354,0.3359256,119070.0,119060.0,0.0839834]
[1754962255554,0.77219878,119070.0,119060.0,0.1795134]
[1754962255751,0.77219878,119070.0,119060.0,0.1646034]
[1754962256150,0.77219878,119070.0,119060.0,0.1886734]
[1754962256556,0.77319878,119070.0,119060.0,0.1886734]
[1754962257352,0.77319878,119070.0,119060.0,0.1906734]
[1754962257559,0.77319878,119070.0,119060.0,0.07203]
[1754962258159,0.77319878,119070.0,119060.0,0.07003]
[1754962258160,0.77419878,119070.0,119060.0,0.07003]
[1754962258353,0.77419878,119070.0,119060.0,0.1540134]
[1754962258552,0.77419878,119070.0,119060.0,0.07003]
[1754962259062,0.77419878,119070.0,119060.0,0.1540134]
[1754962259259,0.77419878,119070.0,119060.0,0.1326634]
[1754962260367,0.77419878,119070.0,119060.0,0.2035834]
[1754962260368,0.69021538,119070.0,119060.0,0.2035834]
[1754962261258,0.69021538,119070.0,119060.0,0.02407]
[1754962261458,0.69021538,119070.0,119060.0,0.1080534]
[1754962261853,0.69021538,119070.0,119060.0,0.02407]
[1754962262260,0.69021538,119070.0,119060.0,0.1080534]
[1754962263065,0.69021538,119070.0,119060.0,0.1822334]
[1754962263864,0.69021538,119070.0,119060.0,0.2035834]
[1754962268679,0.82961538,119070.0,119060.0,0.2035834]
[1754962269479,1.60245538,119070.0,119060.0,0.2035834]
[1754962269877,1.18321659,119070.0,119060.0,0.2035834]
[1754962270071,1.60245538,119070.0,119060.0,0.2035834]
[1754962272777,2.12680883,119070.0,119060.0,0.2035834]
[1754962282279,2.12680883,119070.0,119060.0,0.67225952]
[1754962282280,0.01903439,119070.0,119060.0,0.67225952]
[1754962282484,1.24635612,119070.0,119060.0,0.2004634]
[1754962282686,1.71815224,119070.0,119060.0,0.2004634]
[1754962287692,1.80212854,119070.0,119060.0,0.2004634]
[1754962291495,1.71815224,119070.0,119060.0,0.2004634]
[1754962292090,1.80212854,119070.0,119060.0,0.1675634]
[1754962292295,1.80212854,119070.0,119060.0,0.1540134]
[1754962293796,1.80212854,119070.0,119060.0,0.1080534]
[1754962295198,1.80212854,119070.0,119060.0,0.2032334]
[1754962295398,1.71815224,119070.0,119060.0,0.2032334]
[1754962298605,1.80212854,119070.0,119060.0,0.2032334]
[1754962299001,1.71815224,119070.0,119060.0,0.2032334]
[1754962299302,1.80212854,119070.0,119060.0,0.2032334]
[1754962299501,1.94152854,119070.0,119060.0,0.2032334]
[1754962303604,1.80212854,119070.0,119060.0,0.2032334]
[1754962303805,1.80212854,119070.0,119060.0,0.1567834]
[1754962305309,1.80212854,119070.0,119060.0,0.1896834]
[1754962305509,1.80212854,119070.0,119060.0,0.2032334]
[1754962306699,1.80212854,119070.0,119060.0,0.1567834]
[1754962307610,1.80212854,119070.0,119060.0,0.1080534]
[1754962307810,1.80212854,119070.0,119060.0,0.0839834]
[1754962308002,1.80212854,119070.0,119060.0,0.1071134]
[1754962309099,1.80212854,119070.0,119060.0,0.0839834]
[1754962310209,1.80212854,119070.0,119060.0,0.1086234]
[1754962310605,1.80212854,119070.0,119060.0,0.1560234]
[1754962310806,1.80212854,119070.0,119060.0,0.2032334]
[1754962312415,1.71815224,119070.0,119060.0,0.2032334]
[1754962312714,1.71735224,119070.0,119060.0,0.2032334]
[1754962313108,1.80132854,119070.0,119060.0,0.2032334]
[1754962313903,1.94072854,119070.0,119060.0,0.2032334]
[1754962323519,1.94072854,119070.0,119060.0,0.1896834]
[1754962326220,1.94072854,119070.0,119030.0,0.51077948]
[1754962326221,0.1679879,119050.0,119030.0,0.51077948]
[1754962326421,0.2520854,119050.0,119040.0,0.1086375]
[1754962326612,1.0235254,119050.0,119040.0,0.0839975]
[1754962327413,1.96711764,119050.0,119040.0,0.0839975]
[1754962328620,1.86264368,119050.0,119040.0,0.0839975]
[1754962328920,1.86264368,119050.0,119040.0,0.0849975]
[1754962329126,1.86264368,119050.0,119040.0,0.0859975]
[1754962329918,1.86264368,119050.0,119040.0,0.0849975]
[1754962330113,1.86464368,119050.0,119040.0,0.0849975]
[1754962330924,1.86664368,119050.0,119040.0,0.0839975]
[1754962331225,1.86664368,119050.0,119040.0,0.1086375]
[1754962331723,1.44708454,119050.0,119040.0,0.1086375]
[1754962334025,1.58648454,119050.0,119040.0,0.1086375]
[1754962334821,0.0839975,119040.0,119030.0,0.276644]
[1754962335022,0.0840045,119030.0,119020.0,0.35487049]
[1754962335227,1.30035452,119030.0,119020.0,0.4171004]
[1754962335417,1.30035452,119030.0,119020.0,0.3834404]
[1754962335618,1.30035452,119030.0,119020.0,0.2180182]
[1754962336122,1.30035452,119030.0,119020.0,0.2872682]
[1754962336916,1.29179956,119030.0,119020.0,0.2872682]
[1754962337827,1.35820314,119030.0,119020.0,0.2872682]
[1754962338827,0.938644,119030.0,119020.0,0.2872682]
[1754962339026,1.35820314,119030.0,119020.0,0.2872682]
[1754962344029,1.49760314,119030.0,119020.0,0.2872682]
[1754962344231,0.8546395,119030.0,119020.0,0.2872682]
[1754962344426,0.0832795,119030.0,119020.0,0.2872682]
[1754962344624,0.83776358,119030.0,119020.0,0.2872682]
[1754962345330,1.25732272,119030.0,119020.0,0.2872682]
[1754962345830,0.83776358,119030.0,119020.0,0.2872682]
[1754962346426,0.06640358,119030.0,119020.0,0.70682734]
[1754962346734,1.35901764,119040.0,119030.0,0.0840045]
[1754962346935,1.35901764,119040.0,119030.0,0.2042945]
[1754962347934,1.36101764,119040.0,119030.0,0.2042945]
[1754962352041,0.9414585,119040.0,119030.0,0.2042945]
[1754962352235,1.36101764,119040.0,119030.0,0.2042945]
[1754962352431,1.27701804,119040.0,119030.0,0.2042945]
[1754962352634,1.27701664,119040.0,119030.0,0.2042945]
[1754962355240,1.69657578,119040.0,119030.0,0.1086445]
[1754962355538,1.69657578,119040.0,119030.0,0.0840045]
[1754962356340,1.69657578,119040.0,119030.0,0.1086445]
[1754962359132,1.69657578,119040.0,119030.0,0.0840045]
[1754962362239,1.69657578,119040.0,119030.0,0.1086445]
[1754962363141,1.69657578,119040.0,119030.0,0.0840045]
[1754962363442,0.0840045,119030.0,119020.0,0.3606804]
[1754962363644,0.50356364,119030.0,119020.0,0.3606804]
[1754962365543,0.50356364,119030.0,119020.0,0.4563304]
[1754962367438,0.50356364,119030.0,119020.0,0.4068504]
[1754962367639,0.0840116,119020.0,119010.0,0.3607108]
[1754962367839,1.27485074,119020.0,119010.0,0.4317208]
[1754962368336,1.27485074,119020.0,119010.0,0.4563608]
[1754962369137,1.27485074,119020.0,119010.0,0.4573608]
[1754962370050,1.27485074,119020.0,119010.0,0.4583608]
[1754962371644,1.27485074,119020.0,119010.0,0.3627108]
[1754962372349,1.27485074,119020.0,119010.0,0.4102608]
[1754962372548,1.27485074,119020.0,119010.0,0.4567508]
[1754962374154,0.8552916,119020.0,119010.0,0.4567508]
[1754962374452,1.27485074,119020.0,119010.0,0.4567508]
[1754962380758,1.79949948,119020.0,119010.0,0.4567508]
[1754962384270,1.46679554,119020.0,119010.0,0.4567508]
[1754962384865,0.61150394,119020.0,119010.0,0.4567508]
[1754962385061,1.38294394,119020.0,119010.0,0.4567508]
[1754962385263,0.9948516,119020.0,119010.0,0.4567508]
[1754962385463,1.24354394,119020.0,119010.0,0.4567508]
[1754962385659,0.47220394,119030.0,119020.0,0.0840116]
[1754962385866,1.24362394,119030.0,119020.0,0.67443554]
[1754962386164,0.77152,119030.0,119020.0,0.2023316]
[1754962386465,1.24362394,119030.0,119020.0,0.2023316]
[1754962388663,1.19103582,119030.0,119020.0,0.2023316]
[1754962389967,0.77152,119030.0,119020.0,0.2023316]
[1754962390171,1.19103582,119030.0,119020.0,0.2023316]
[1754962394377,0.48835127,119040.0,119030.0,0.0840045]
[1754962394674,0.48825127,119040.0,119030.0,0.22067254]
[1754962394878,1.26013127,119040.0,119030.0,0.22067254]
[1754962395280,1.34412867,119040.0,119030.0,0.22067254]
[1754962396676,1.34412867,119040.0,119030.0,0.17418254]
[1754962396977,1.34412867,119040.0,119030.0,0.22067254]
[1754962398878,1.34512867,119040.0,119030.0,0.22067254]
[1754962399578,1.34612867,119040.0,119030.0,0.22067254]
[1754962402983,1.76564449,119040.0,119030.0,0.12663254]
[1754962403181,1.76564449,119040.0,119030.0,0.10235254]
[1754962404272,1.76564449,119040.0,119030.0,0.12702254]
[1754962405783,1.76710707,119040.0,119030.0,0.12702254]
[1754962413394,1.90650707,119040.0,119030.0,0.12702254]
[1754962414691,1.90650707,119040.0,119030.0,0.10235254]
[1754962417893,0.0840186,119020.0,119010.0,0.2520478]
[1754962418098,1.27485442,119020.0,119010.0,0.2767178]
[1754962418396,1.27485442,119020.0,119010.0,0.3475978]
[1754962418590,1.27485442,119020.0,119010.0,0.3691078]
[1754962419501,1.27485442,119020.0,119010.0,0.2777178]
[1754962420297,1.27485442,119020.0,119010.0,0.2787178]
[1754962420593,1.28320176,119020.0,119010.0,0.1946997]
[1754962421998,1.28320176,119020.0,119010.0,0.1700297]
[1754962423497,1.28320176,119020.0,119010.0,0.1946997]
[1754962424199,0.8553386,119020.0,119010.0,0.2099597]
[1754962424389,1.27485442,119020.0,119010.0,0.2870897]
[1754962427504,1.28320437,119020.0,119010.0,0.2870897]
[1754962428906,0.86368855,119020.0,119010.0,0.2870897]
[1754962429100,1.28320437,119020.0,119010.0,0.2870897]
[1754962430700,1.27485442,119020.0,119010.0,0.2870897]
[1754962431705,1.28308078,119020.0,119010.0,0.2870897]
[1754962432205,1.27485442,119020.0,119010.0,0.2870897]
[1754962433897,1.41425442,119020.0,119010.0,0.2870897]
[1754962435710,1.41425442,119020.0,119010.0,0.2723997]
[1754962435906,1.41425442,119020.0,119010.0,0.2192297]
[1754962436107,1.41425442,119020.0,119010.0,0.1946997]
[1754962442318,1.83377024,119020.0,119010.0,0.002]
[1754962443124,1.41425442,119020.0,119010.0,0.002]
[1754962443426,0.9947386,119020.0,119010.0,0.002]
[1754962443626,1.41425442,119020.0,119010.0,0.002]
[1754962451027,0.9947386,119020.0,119010.0,0.002]
[1754962451226,1.41425442,119020.0,119010.0,0.002]
[1754962451524,1.41425442,119020.0,119010.0,0.02645]
[1754962451730,1.41425442,119020.0,119010.0,0.002]
[1754962453029,1.41425442,119020.0,119010.0,0.02645]
[1754962453831,1.41425442,119020.0,119010.0,0.1104686]
[1754962454030,1.41425442,119020.0,119010.0,0.2065386]
[1754962457731,0.2234186,119020.0,119010.0,0.2065386]
[1754962457940,1.41445442,119020.0,119010.0,0.2065386]
[1754962468640,1.93925962,119020.0,119010.0,0.2065386]
[1754962474241,1.24368051,119020.0,119010.0,0.2046186]
[1754962474741,1.24368051,119020.0,119010.0,0.21310197]
[1754962476041,1.24364051,119020.0,119010.0,0.68526248]
[1754962476542,1.24364051,119020.0,119010.0,0.21310197]
[1754962476845,0.77148,119020.0,119010.0,0.21310197]
[1754962478342,0.77144,119020.0,119010.0,0.38113497]
[1754962478544,0.43640808,119030.0,119020.0,0.0840117]
[1754962478744,1.29175268,119030.0,119020.0,0.2025117]
[1754962482541,1.20774808,119030.0,119020.0,0.2025117]
[1754962482747,0.78821199,119030.0,119020.0,0.2025117]
[1754962483744,0.08757993,119040.0,119020.0,0.4545423]
[1754962483949,0.08611735,119040.0,119030.0,0.1552947]
[1754962484150,1.27691344,119040.0,119030.0,0.2025047]
[1754962491056,0.85737735,119040.0,119030.0,0.2025047]
[1754962491255,1.27691344,119040.0,119030.0,0.2025047]
[1754962495458,1.36091104,119040.0,119030.0,0.2025047]
[1754962499463,1.27691344,119040.0,119030.0,0.2025047]
[1754962499862,1.36091104,119040.0,119030.0,0.2025047]
[1754962507764,1.27691344,119040.0,119030.0,0.2025047]
[1754962508363,0.85737735,119040.0,119030.0,0.2025047]
[1754962508563,1.27691344,119040.0,119030.0,0.2025047]
[1754962508866,1.80111307,119040.0,119030.0,0.2025047]
[1754962509568,1.88511067,119040.0,119030.0,0.2025047]
[1754962515565,0.94137495,119040.0,119030.0,0.2025047]
[1754962515766,1.88511067,119040.0,119030.0,0.2025047]
[1754962516669,1.32888521,119040.0,119030.0,0.2025047]
[1754962518272,1.41288281,119040.0,119030.0,0.2025047]
[1754962519372,1.88475067,119040.0,119030.0,0.2025047]
[1754962519673,1.41288281,119040.0,119030.0,0.2025047]
[1754962520972,1.88475067,119040.0,119030.0,0.2025047]
[1754962521171,1.80075307,119040.0,119030.0,0.2025047]
[1754962521674,0.85701735,119040.0,119030.0,0.2025047]
[1754962521867,1.80075307,119040.0,119030.0,0.2025047]
[1754962522470,1.88475067,119040.0,119030.0,0.2025047]
[1754962524771,1.88475067,119040.0,119030.0,0.1077847]
[1754962524977,1.88475067,119040.0,119030.0,0.0840047]
[1754962525166,0.08601735,119040.0,119030.0,0.67640256]
[1754962525370,1.41280281,119040.0,119030.0,0.2045347]
[1754962525874,1.88467067,119040.0,119030.0,0.2045347]
[1754962526477,0.94093495,119040.0,119030.0,0.2045347]
[1754962526674,1.88467067,119040.0,119030.0,0.2045347]
[1754962528571,0.94093495,119040.0,119030.0,0.2045347]
[1754962528777,1.88467067,119040.0,119030.0,0.2045347]
[1754962530077,0.94093495,119040.0,119030.0,0.2045347]
[1754962530279,1.32880521,119040.0,119030.0,0.2045347]
[1754962530472,0.85693735,119040.0,119030.0,0.2045347]
[1754962530672,1.32880521,119040.0,119030.0,0.2045347]
[1754962531075,1.41280281,119040.0,119030.0,0.2045347]
[1754962531274,1.88467067,119040.0,119030.0,0.2045347]
[1754962535381,0.85693735,119040.0,119030.0,0.2045347]
[1754962535679,0.06873545,119040.0,119030.0,0.67640256]
[1754962535873,0.77094,119050.0,119040.0,0.0839976]
[1754962536072,0.0001,119060.0,119050.0,0.0839905]
[1754962536278,0.47196786,119070.0,119060.0,0.0839835]
[1754962536474,0.83838432,119070.0,119060.0,0.2045135]
[1754962536678,1.31025218,119070.0,119060.0,0.22339486]
[1754962536883,0.83838432,119070.0,119060.0,0.69526272]
[1754962537078,1.31025218,119070.0,119060.0,0.22339486]
[1754962537685,1.31025218,119070.0,119060.0,0.23169586]
[1754962538075,1.31025218,119070.0,119060.0,0.11116586]
[1754962538276,1.86609654,119070.0,119060.0,0.10286486]
[1754962538581,1.86609654,119070.0,119060.0,0.12665486]
[1754962538783,1.34161116,119070.0,119060.0,0.12665486]
[1754962540383,1.34161116,119070.0,119060.0,0.10286486]
[1754962540888,1.34161116,119070.0,119060.0,0.12665486]
[1754962542291,0.92236082,119070.0,119060.0,0.12665486]
[1754962542491,1.34161116,119070.0,119060.0,0.12665486]
[1754962542889,1.34161116,119070.0,119060.0,0.17599486]
[1754962543394,1.34161116,119070.0,119060.0,0.12665486]
[1754962544696,1.34161116,119070.0,119060.0,0.10286486]
[1754962545587,1.34307341,119070.0,119060.0,0.10286486]
[1754962547393,1.34307341,119070.0,119060.0,0.01888136]
[1754962547589,0.0839835,119060.0,119050.0,0.0839863]
[1754962547793,0.50323384,119060.0,119050.0,0.0839863]
[1754962547994,0.0839906,119050.0,119040.0,0.33599]
[1754962548195,1.27456094,119050.0,119040.0,0.33599]
[1754962549093,1.27456094,119050.0,119040.0,0.36083]
[1754962549493,1.27456094,119050.0,119040.0,0.33799]
[1754962549693,1.27456094,119050.0,119040.0,0.34099]
[1754962549891,1.69381128,119050.0,119040.0,0.005]
[1754962550097,0.92249128,119050.0,119040.0,0.0889976]
[1754962550297,1.27432094,119050.0,119040.0,0.0889976]
[1754962550493,1.27432094,119050.0,119040.0,0.1138376]
[1754962551396,1.27832094,119050.0,119040.0,0.1088376]
[1754962557395,1.19433034,119050.0,119040.0,0.2036076]
[1754962560197,0.77508,119050.0,119040.0,0.2036076]
[1754962561002,1.19233034,119050.0,119040.0,0.2036076]
[1754962561492,1.19033034,119050.0,119040.0,0.2036076]
[1754962561688,0.77108,119050.0,119040.0,0.2036076]
[1754962561897,0.0001,119060.0,119050.0,0.0839906]
[1754962562107,0.77084,119060.0,119050.0,0.3715773]
[1754962562305,1.19009034,119060.0,119050.0,0.3715773]
[1754962564304,1.19109034,119060.0,119050.0,0.3715773]
[1754962564505,1.19209034,119060.0,119050.0,0.3715773]
[1754962571410,1.19209034,119060.0,119050.0,0.37986399]
[1754962574208,0.77284,119060.0,119050.0,0.37986399]
[1754962574407,1.19209034,119060.0,119050.0,0.37986399]
[1754962576113,0.77284,119060.0,119050.0,0.37986399]
[1754962576407,1.19209034,119060.0,119050.0,0.37986399]
[1754962576712,1.19209034,119060.0,119050.0,0.3715773]
[1754962577712,1.19209034,119060.0,119050.0,0.37982211]
[1754962578913,0.77284,119060.0,119050.0,0.37982211]
[1754962579118,1.19209034,119060.0,119050.0,0.37982211]
[1754962583318,0.77268,119060.0,119050.0,0.37982211]
[1754962584618,0.77168,119060.0,119050.0,0.37982211]
[1754962585612,0.77068,119060.0,119050.0,0.37982211]
[1754962586517,1.18993034,119060.0,119050.0,0.37982211]
[1754962588818,1.18993034,119060.0,119050.0,0.3715773]
[1754962589417,1.18993034,119060.0,119050.0,0.3022873]
[1754962589808,1.18993034,119060.0,119050.0,0.3697573]